bitfinex/quotes_BTCUSD_20250320
["timestamp","ask_amount","ask_price","bid_price","bid_amount"]
[1742472464269,0.8589674,85525.0,85524.0,3e-07]
[1742472464930,0.73939237,85525.0,85524.0,3e-07]
[1742472466587,0.71748789,85525.0,85524.0,3e-07]
[1742472466890,0.73937118,85525.0,85524.0,3e-07]
[1742472467380,0.74405918,85525.0,85524.0,3e-07]
[1742472470392,0.61237918,85525.0,85524.0,3e-07]
[1742472470593,0.74381918,85525.0,85524.0,3e-07]
[1742472471727,0.86339421,85525.0,85524.0,3e-07]
[1742472472126,0.74381918,85525.0,85524.0,3e-07]
[1742472475356,0.61237918,85525.0,85524.0,3e-07]
[1742472475471,0.74377918,85525.0,85524.0,3e-07]
[1742472476403,0.53497918,85525.0,85524.0,3e-07]
[1742472476971,0.61757918,85525.0,85524.0,3e-07]
[1742472477108,0.59923832,85525.0,85524.0,3e-07]
[1742472477308,0.16315032,85525.0,85524.0,3e-07]
[1742472477673,0.46348912,85525.0,85524.0,3e-07]
[1742472477797,0.16348912,85525.0,85524.0,3e-07]
[1742472478277,0.45848912,85525.0,85524.0,3e-07]
[1742472478518,0.45348912,85525.0,85524.0,3e-07]
[1742472478704,0.4683286,85525.0,85524.0,3e-07]
[1742472478890,0.4733286,85525.0,85524.0,3e-07]
[1742472479305,0.44979712,85525.0,85524.0,3e-07]
[1742472479539,0.44979712,85525.0,85524.0,0.0904923]
[1742472479540,0.03022209,85525.0,85524.0,0.0904923]
[1742472479718,0.27576309,85525.0,85524.0,0.0788003]
[1742472479919,0.29410156,85525.0,85524.0,0.0788003]
[1742472480326,0.04856056,85525.0,85524.0,0.0904923]
[1742472480513,0.04056056,85525.0,85524.0,0.0904923]
[1742472480675,0.04156056,85525.0,85524.0,0.0904923]
[1742472481497,0.04056056,85525.0,85524.0,0.0904923]
[1742472481717,0.02222209,85525.0,85524.0,0.0788003]
[1742472481923,0.02322209,85525.0,85524.0,0.0788003]
[1742472482122,0.26876309,85525.0,85524.0,0.0788003]
[1742472482526,0.27176309,85525.0,85524.0,0.0788003]
[1742472482939,0.26876309,85525.0,85524.0,0.0788003]
[1742472483340,0.27076309,85525.0,85524.0,0.0788003]
[1742472484869,0.02522209,85525.0,85524.0,0.0904923]
[1742472485089,0.04356036,85525.0,85524.0,0.0788003]
[1742472485299,0.28910136,85525.0,85524.0,0.0788003]
[1742472487514,0.40867639,85525.0,85524.0,0.0788003]
[1742472490076,0.16313539,85525.0,85524.0,0.0788003]
[1742472491545,0.04356036,85525.0,85524.0,0.3243443]
[1742472491729,0.0033388,85525.0,85524.0,0.3243443]
[1742472491957,0.0033388,85525.0,85524.0,0.3732443]
[1742472492719,0.0023388,85525.0,85524.0,0.3732443]
[1742472493181,0.0003388,85525.0,85524.0,0.3732443]
[1742472496205,0.0023388,85525.0,85524.0,0.3732443]
[1742472496411,0.02067457,85525.0,85524.0,0.3732443]
[1742472497567,0.02067457,85525.0,85524.0,0.50736018]
[1742472497772,0.03051848,85525.0,85524.0,0.50736018]
[1742472500069,4.8e-07,85525.0,85524.0,0.50736018]
[1742472500556,4.8e-07,85525.0,85524.0,2.42226018]
[1742472502005,4.8e-07,85525.0,85524.0,2.72226018]
[1742472502412,2.8e-07,85525.0,85524.0,2.72226018]
[1742472502735,2.8e-07,85525.0,85524.0,2.74726018]
[1742472503738,0.00100028,85525.0,85524.0,2.75126018]
[1742472504278,2.8e-07,85525.0,85524.0,2.75626018]
[1742472504909,0.00100028,85525.0,85524.0,2.75926018]
[1742472509515,0.00100028,85525.0,85524.0,3.31586018]
[1742472513687,0.00133908,85525.0,85524.0,3.31586018]
[1742472515300,0.00133908,85525.0,85524.0,3.43916018]
[1742472515512,0.00133908,85525.0,85524.0,3.31586018]
[1742472515710,0.00133908,85525.0,85524.0,3.44646018]
[1742472515850,0.00133908,85525.0,85524.0,2.92241933]
[1742472516096,0.00133908,85525.0,85524.0,1.3546843]
[1742472516609,0.00133908,85525.0,85524.0,2.8546843]
[1742472516813,0.0013388,85525.0,85524.0,2.7200443]
[1742472517024,0.0013388,85525.0,85524.0,1.3506843]
[1742472517339,0.0013388,85525.0,85524.0,1.3556843]
[1742472517526,0.0013388,85525.0,85524.0,2.8556843]
[1742472518128,0.0003388,85525.0,85524.0,2.8526843]
[1742472518555,0.0013388,85525.0,85524.0,2.8546843]
[1742472520495,0.01967383,85525.0,85524.0,1.3546843]
[1742472521105,0.01967383,85525.0,85524.0,2.8546843]
[1742472525291,0.01967383,85525.0,85524.0,1.3546843]
[1742472525806,0.01967383,85525.0,85524.0,2.8546843]
[1742472527283,0.01967383,85525.0,85524.0,2.9296843]
[1742472528382,0.01967383,85525.0,85524.0,3.06380018]
[1742472529119,0.0013388,85525.0,85524.0,3.06380018]
[1742472529317,8e-07,85525.0,85524.0,3.06880018]
[1742472529541,8e-07,85525.0,85524.0,3.36880018]
[1742472529741,8e-07,85525.0,85524.0,3.39380018]
[1742472531643,4.171e-05,85532.0,85531.0,0.37963988]
[1742472532054,4.171e-05,85532.0,85531.0,1.87963988]
[1742472532396,4.171e-05,85532.0,85531.0,2.00999988]
[1742472532729,4.171e-05,85532.0,85531.0,2.01899988]
[1742472535747,4.171e-05,85532.0,85531.0,2.43389988]
[1742472537001,0.00038051,85532.0,85531.0,2.43389988]
[1742472544017,0.00038051,85532.0,85531.0,2.99045988]
[1742472548955,0.00038051,85532.0,85531.0,2.98145988]
[1742472549358,0.00038051,85532.0,85531.0,2.98745988]
[1742472549559,0.00038051,85532.0,85531.0,2.98145988]
[1742472550003,0.00038051,85532.0,85531.0,2.99345988]
[1742472551528,0.00038051,85532.0,85531.0,2.98745988]
[1742472551936,0.00038051,85532.0,85531.0,2.99345988]
[1742472565741,0.00038051,85532.0,85531.0,2.728984]
[1742472565981,0.00038051,85532.0,85531.0,2.859304]
[1742472566901,0.00038051,85532.0,85531.0,2.853304]
[1742472567375,0.00038051,85532.0,85531.0,2.857304]
[1742472567753,0.00038051,85532.0,85531.0,2.851304]
[1742472567928,0.00038051,85532.0,85531.0,2.855304]
[1742472568619,0.00038051,85532.0,85531.0,1.355304]
[1742472568845,0.01871339,85532.0,85531.0,1.355304]
[1742472569071,0.01871339,85532.0,85531.0,2.855304]
[1742472571021,0.01871339,85532.0,85531.0,2.440404]
[1742472571976,0.01871339,85532.0,85531.0,0.810084]
[1742472572184,0.01871339,85532.0,85531.0,0.940404]
[1742472572597,0.01871339,85532.0,85531.0,2.440404]
[1742472573006,0.01871339,85532.0,85531.0,2.57451988]
[1742472573861,0.00038051,85532.0,85531.0,2.57451988]
[1742472576850,0.00038051,85532.0,85531.0,2.98941988]
[1742472577052,5.1e-07,85532.0,85531.0,2.98941988]
[1742472577277,5.1e-07,85532.0,85531.0,3.36651988]
[1742472578347,5.1e-07,85532.0,85531.0,3.40793691]
[1742472578549,5.1e-07,85532.0,85531.0,3.37151988]
[1742472581446,5.1e-07,85532.0,85531.0,3.29441988]
[1742472582880,5.1e-07,85532.0,85531.0,3.15909988]
[1742472583082,5.1e-07,85532.0,85531.0,3.28941988]
[1742472583237,5.1e-07,85532.0,85531.0,3.155304]
[1742472583608,5.1e-07,85532.0,85531.0,3.16984485]
[1742472583809,5.1e-07,85532.0,85531.0,3.03952485]
[1742472584015,5.1e-07,85532.0,85531.0,3.16984485]
[1742472585380,5.1e-07,85532.0,85531.0,3.29441988]
[1742472586076,5.1e-07,85532.0,85531.0,3.28941988]
[1742472586590,5.1e-07,85532.0,85531.0,3.28541988]
[1742472586938,5.1e-07,85532.0,85531.0,3.29141988]
[1742472587568,0.01833208,85532.0,85531.0,3.29141988]
[1742472587776,0.01833208,85532.0,85531.0,3.28741988]
[1742472588587,0.01833208,85532.0,85531.0,3.29341988]
[1742472592162,0.01833208,85532.0,85531.0,1.528984]
[1742472592364,0.01833208,85532.0,85531.0,1.359304]
[1742472592365,5.1e-07,85532.0,85531.0,1.359304]
[1742472593235,5.1e-07,85532.0,85531.0,1.347304]
[1742472593674,5.1e-07,85532.0,85531.0,1.353304]
[1742472594424,5.1e-07,85532.0,85531.0,0.938404]
[1742472594626,5.1e-07,85532.0,85531.0,0.944404]
[1742472594913,5.1e-07,85532.0,85531.0,0.9445734]
[1742472595095,5.1e-07,85532.0,85531.0,1.07868928]
[1742472595724,0.0183327,85532.0,85531.0,2.57868928]
[1742472601394,0.0183327,85532.0,85531.0,2.02212928]
[1742472602592,5.1e-07,85532.0,85531.0,1.7576934]
[1742472602808,0.37142151,85532.0,85531.0,0.1424894]
[1742472603014,0.12590051,85532.0,85531.0,0.0121694]
[1742472603507,0.12590051,85532.0,85531.0,0.0238604]
[1742472604034,0.12590051,85532.0,85531.0,0.0001694]
[1742472604241,0.12590051,85532.0,85531.0,0.0238604]
[1742472604785,0.12590051,85532.0,85531.0,0.0118604]
[1742472604978,0.12590051,85532.0,85531.0,0.0031694]
[1742472605183,0.12590051,85532.0,85531.0,0.0061694]
[1742472607305,0.38975574,85532.0,85531.0,0.0061694]
[1742472607812,0.38975574,85532.0,85531.0,0.0031694]
[1742472608388,0.14423474,85532.0,85531.0,0.0031694]
[1742472608590,0.14423474,85532.0,85531.0,0.0001694]
[1742472608910,0.14423474,85532.0,85531.0,0.2456934]
[1742472609116,0.14423474,85532.0,85531.0,0.2466934]
[1742472610311,5.1e-07,85532.0,85531.0,0.2466934]
[1742472610512,5.1e-07,85532.0,85531.0,0.40348221]
[1742472610877,5.1e-07,85532.0,85531.0,0.52305724]
[1742472611084,5.1e-07,85532.0,85531.0,2.02805724]
[1742472611531,5.1e-07,85532.0,85531.0,2.02705724]
[1742472611710,5.1e-07,85532.0,85531.0,2.33105724]
[1742472612074,5.1e-07,85532.0,85531.0,2.32705724]
[1742472612279,5.1e-07,85532.0,85531.0,2.33605724]
[1742472613796,5.1e-07,85532.0,85531.0,2.32705724]
[1742472613946,5.1e-07,85532.0,85531.0,2.33305724]
[1742472614149,5.1e-07,85532.0,85531.0,2.33905724]
[1742472614513,5.1e-07,85532.0,85531.0,2.35689312]
[1742472614745,5.1e-07,85532.0,85531.0,2.36289312]
[1742472615087,5.1e-07,85532.0,85531.0,2.77779312]
[1742472615493,5.1e-07,85532.0,85531.0,2.74895724]
[1742472615660,5.1e-07,85532.0,85531.0,2.72248843]
[1742472615862,5.1e-07,85532.0,85531.0,2.73702928]
[1742472616416,5.1e-07,85532.0,85531.0,2.74864159]
[1742472617007,5.1e-07,85532.0,85531.0,2.74264159]
[1742472617584,5.1e-07,85532.0,85531.0,2.74864159]
[1742472623606,5.1e-07,85532.0,85531.0,2.75364159]
[1742472624738,5.1e-07,85532.0,85531.0,2.74764159]
[1742472625087,5.1e-07,85532.0,85531.0,2.75364159]
[1742472625288,5.1e-07,85532.0,85531.0,2.74764159]
[1742472626321,5.1e-07,85532.0,85531.0,2.82714159]
[1742472626726,5.1e-07,85532.0,85531.0,2.83314159]
[1742472635594,5.1e-07,85532.0,85531.0,2.85814159]
[1742472635797,5.1e-07,85532.0,85531.0,2.88847712]
[1742472636225,5.1e-07,85532.0,85531.0,2.89447712]
[1742472636671,5.1e-07,85532.0,85531.0,2.88847712]
[1742472636846,5.1e-07,85532.0,85531.0,2.88247712]
[1742472637053,5.1e-07,85532.0,85531.0,2.88847712]
[1742472637663,5.1e-07,85532.0,85531.0,2.89447712]
[1742472638092,5.1e-07,85532.0,85531.0,3.01777712]
[1742472638290,0.0003388,85562.0,85561.0,0.011687]
[1742472638555,0.00038057,85562.0,85561.0,0.27841996]
[1742472638718,0.00038057,85562.0,85561.0,0.27608288]
[1742472638889,0.01870678,85562.0,85561.0,0.27608288]
[1742472639111,0.01870678,85562.0,85561.0,2.00983388]
[1742472639474,0.01870678,85562.0,85561.0,2.01483388]
[1742472640315,0.01870678,85562.0,85561.0,2.02083388]
[1742472640851,7.8e-07,85562.0,85561.0,2.40916212]
[1742472641076,0.0003388,85577.0,85576.0,0.245395]
[1742472641259,0.00038056,85577.0,85576.0,0.375675]
[1742472642980,0.00038056,85577.0,85576.0,0.378675]
[1742472643535,0.00038056,85577.0,85576.0,0.375675]
[1742472643941,0.08218056,85577.0,85574.0,0.233713]
[1742472644139,0.0452,85576.0,85575.0,0.13028]
[1742472644349,0.0452,85576.0,85575.0,0.011685]
[1742472646447,0.0452,85576.0,85575.0,0.014685]
[1742472647434,0.0452,85576.0,85575.0,0.017685]
[1742472649901,0.0452,85576.0,85575.0,0.011685]
[1742472650175,0.0452,85576.0,85575.0,0.014685]
[1742472650383,0.0452,85576.0,85575.0,0.017685]
[1742472650581,0.0452,85576.0,85575.0,1.517685]
[1742472651665,0.0452,85576.0,85575.0,1.53222585]
[1742472652076,0.0452,85576.0,85575.0,1.52922585]
[1742472652620,0.0452,85576.0,85575.0,1.53322585]
[1742472652791,0.0452,85576.0,85575.0,0.018685]
[1742472652990,0.0453694,85576.0,85575.0,0.018685]
[1742472653203,0.0453694,85576.0,85575.0,0.015685]
[1742472653356,0.0453694,85576.0,85575.0,1.519685]
[1742472654717,0.06369396,85576.0,85575.0,1.519685]
[1742472655092,0.06369396,85576.0,85575.0,1.649965]
[1742472657820,0.13869396,85576.0,85575.0,0.008]
[1742472658623,0.13869396,85576.0,85575.0,0.004]
[1742472658827,0.13869396,85576.0,85575.0,0.015685]
[1742472659048,0.13869396,85576.0,85575.0,0.017685]
[1742472659453,0.13869396,85576.0,85575.0,0.013685]
[1742472659984,0.13869396,85576.0,85575.0,0.015685]
[1742472660413,0.13869396,85576.0,85575.0,0.004]
[1742472660620,0.1320544,85576.0,85575.0,0.004]
[1742472661197,0.1203694,85576.0,85575.0,0.004]
[1742472661396,0.1203694,85576.0,85575.0,0.013685]
[1742472663094,0.1203694,85576.0,85575.0,0.011685]
[1742472663584,0.1203694,85576.0,85575.0,0.015685]
[1742472663825,0.1203694,85576.0,85575.0,0.004]
[1742472664037,0.13869446,85576.0,85575.0,0.004]
[1742472664167,0.38408946,85576.0,85575.0,0.004]
[1742472665265,0.38408946,85576.0,85575.0,0.002]
[1742472665672,0.233725,85571.0,85567.0,0.245419]
[1742472666090,0.245411,85571.0,85566.0,0.245422]
[1742472667230,0.245411,85571.0,85567.0,0.002]
[1742472667434,0.2454,85575.0,85568.0,0.011686]
[1742472667692,0.38408946,85576.0,85571.0,0.245408]
[1742472668328,0.13869446,85576.0,85575.0,0.233713]
[1742472668531,0.13869446,85576.0,85575.0,0.245398]
[1742472668934,0.13869446,85576.0,85573.0,0.233716]
[1742472669552,0.13869446,85576.0,85575.0,0.001]
[1742472669759,0.13869446,85576.0,85575.0,0.002]
[1742472669907,0.13869446,85576.0,85575.0,0.001]
[1742472670793,0.13869446,85576.0,85575.0,0.002]
[1742472671328,0.13869446,85576.0,85575.0,0.001]
[1742472672384,0.13869446,85576.0,85575.0,0.002]
[1742472674580,0.06369446,85576.0,85575.0,0.013685]
[1742472675411,0.01849446,85576.0,85575.0,0.013685]
[1742472676194,0.01849446,85576.0,85575.0,0.012685]
[1742472676318,0.01849446,85576.0,85575.0,0.015685]
[1742472676683,0.01849446,85576.0,85575.0,0.018685]
[1742472677128,0.01849446,85576.0,85575.0,0.021685]
[1742472677340,0.01849446,85576.0,85575.0,0.01]
[1742472677699,0.01849446,85576.0,85575.0,0.007]
[1742472677882,0.01849446,85576.0,85575.0,0.018685]
[1742472678077,0.01849446,85576.0,85575.0,0.021685]
[1742472678310,0.01849446,85576.0,85575.0,0.01]
[1742472678472,0.01849446,85576.0,85575.0,0.007]
[1742472678669,0.39648946,85576.0,85575.0,0.007]
[1742472678874,0.39648946,85576.0,85575.0,0.01]
[1742472679692,0.3781644,85576.0,85575.0,0.003]
[1742472680104,0.49773943,85576.0,85575.0,0.003]
[1742472680897,0.92801943,85576.0,85575.0,0.003]
[1742472681101,0.372532,85563.0,85562.0,0.0003388]
[1742472682323,0.49210703,85563.0,85562.0,0.0003388]
[1742472682752,0.49210703,85563.0,85562.0,0.0023388]
[1742472683001,0.51043531,85563.0,85562.0,0.0023388]
[1742472683809,0.51043531,85563.0,85562.0,0.0043388]
[1742472684014,0.51043531,85563.0,85562.0,0.0023388]
[1742472684639,0.51043531,85563.0,85562.0,0.0033388]
[1742472687143,0.52217345,85563.0,85562.0,0.0033388]
[1742472687361,0.51043531,85563.0,85562.0,0.0033388]
[1742472687974,0.15451528,85563.0,85562.0,0.0033388]
[1742472688256,0.1245,85563.0,85562.0,0.0033388]
[1742472688923,0.136187,85563.0,85562.0,0.0033388]
[1742472689348,0.0489,85563.0,85562.0,0.0033388]
[1742472689550,0.0489,85563.0,85562.0,0.0150258]
[1742472689707,0.0469,85573.0,85567.0,0.011686]
[1742472689911,0.292305,85573.0,85568.0,0.23373]
[1742472690106,0.011686,85572.0,85565.0,0.011687]
[1742472690336,0.245415,85570.0,85565.0,0.245425]
[1742472691006,0.01832732,85569.0,85565.0,0.245425]
[1742472691881,0.01832732,85569.0,85566.0,0.233735]
[1742472692066,0.01832732,85569.0,85562.0,0.0120258]
[1742472692067,0.233736,85567.0,85562.0,0.0120258]
[1742472692469,0.245419,85568.0,85563.0,0.245431]
[1742472695541,0.01832732,85569.0,85564.0,0.245428]
[1742472695749,0.01832732,85569.0,85566.0,0.233735]
[1742472695965,0.01832732,85569.0,85565.0,0.011687]
[1742472697344,0.245418,85568.0,85563.0,0.011687]
[1742472697546,0.245431,85564.0,85562.0,0.0003388]
[1742472697994,0.233743,85565.0,85562.0,0.0003388]
[1742472698197,0.24543,85565.0,85562.0,0.0003388]
[1742472698818,0.245421,85567.0,85562.0,0.2350858]
[1742472700129,0.245421,85567.0,85562.0,0.2360858]
[1742472700338,0.01832732,85569.0,85564.0,0.011687]
[1742472700467,0.01832732,85569.0,85565.0,0.245425]
[1742472700912,0.03001332,85569.0,85565.0,0.233738]
[1742472701090,0.011686,85568.0,85562.0,0.0023388]
[1742472701286,0.011686,85568.0,85562.0,0.0013388]
[1742472701488,0.011686,85568.0,85562.0,0.0003388]
[1742472702031,0.011686,85568.0,85563.0,0.233745]
[1742472702616,0.245422,85567.0,85562.0,0.0003388]
[1742472703245,0.011687,85565.0,85562.0,0.0003388]
[1742472703842,0.245429,85565.0,85562.0,0.0003388]
[1742472704635,0.245429,85565.0,85562.0,0.0013388]
[1742472705191,0.233739,85566.0,85562.0,0.0013388]
[1742472705392,0.233741,85565.0,85562.0,0.0013388]
[1742472705602,0.245428,85565.0,85562.0,0.0013388]
[1742472705961,0.233745,85564.0,85562.0,0.0013388]
[1742472706405,0.245428,85565.0,85562.0,0.0013388]
[1742472706729,0.245428,85565.0,85562.0,0.0023388]
[1742472706933,0.01832784,85564.0,85562.0,0.0013388]
[1742472707108,0.26375884,85564.0,85562.0,0.0013388]
[1742472707324,0.011687,85563.0,85562.0,0.0023388]
[1742472707460,0.142287,85563.0,85562.0,0.0013388]
[1742472707905,0.26186203,85563.0,85562.0,0.0013388]
[1742472708682,0.26186203,85563.0,85562.0,0.0033388]
[1742472708885,0.26186203,85563.0,85562.0,0.0003388]
[1742472709140,0.26286203,85563.0,85562.0,0.0003388]
[1742472710030,0.56286203,85563.0,85562.0,0.0003388]
[1742472710232,0.56286203,85563.0,85562.0,8e-07]
[1742472710639,0.56286203,85563.0,85531.0,0.0001694]
[1742472710640,0.245521,85532.0,85531.0,0.0001694]
[1742472711875,0.245521,85532.0,85531.0,0.0041694]
[1742472712208,0.245521,85532.0,85531.0,0.00429434]
[1742472712563,0.280327,85534.0,85531.0,0.00429434]
[1742472713111,0.0465,85534.0,85531.0,0.23812634]
[1742472713315,0.01169,85538.0,85534.0,0.233824]
[1742472713672,0.01169,85537.0,85531.0,0.00829434]
[1742472714452,0.233821,85536.0,85531.0,0.00429434]
[1742472714653,0.245505,85538.0,85533.0,0.245516]
[1742472715449,0.245505,85538.0,85531.0,0.00729434]
[1742472715450,0.245521,85532.0,85531.0,0.00729434]
[1742472715624,0.245521,85532.0,85531.0,0.00329434]
[1742472715830,0.245521,85532.0,85531.0,0.00029434]
[1742472716865,0.245521,85532.0,85531.0,0.00229434]
[1742472718216,0.245521,85532.0,85531.0,0.00029434]
[1742472718506,0.245521,85532.0,85531.0,0.00129434]
[1742472718711,0.245521,85532.0,85531.0,0.00329434]
[1742472719045,0.245521,85532.0,85531.0,0.00129434]
[1742472719213,0.245521,85532.0,85531.0,0.00329434]
[1742472722371,0.011691,85532.0,85531.0,0.00329434]
[1742472722736,0.233826,85534.0,85531.0,0.00329434]
[1742472722951,0.245517,85534.0,85531.0,0.00329434]
[1742472723107,0.011691,85533.0,85531.0,0.00329434]
[1742472724160,0.011691,85532.0,85531.0,0.00129434]
[1742472724363,0.011691,85532.0,85531.0,0.00029434]
[1742472724569,0.011691,85532.0,85531.0,0.00129434]
[1742472724902,0.011691,85532.0,85531.0,0.00229434]
[1742472725300,0.011691,85532.0,85531.0,0.00029434]
[1742472725442,0.03002504,85532.0,85531.0,0.00029434]
[1742472725640,0.03002504,85532.0,85531.0,0.00329434]
[1742472735754,0.233843,85528.0,85523.0,0.21731704]
[1742472735968,0.233843,85528.0,85523.0,0.21744201]
[1742472736378,0.233833,85531.0,85523.0,0.01181697]
[1742472736574,0.01162117,85536.0,85531.0,0.245522]
[1742472736812,0.02331117,85536.0,85531.0,0.233831]
[1742472737019,0.233829,85533.0,85528.0,0.23384]
[1742472737380,0.011691,85532.0,85524.0,0.233852]
[1742472737582,0.233833,85531.0,85524.0,0.233852]
[1742472737790,0.245531,85529.0,85524.0,0.245544]
[1742472737951,0.011691,85529.0,85525.0,0.233848]
[1742472738569,0.01833379,85529.0,85526.0,0.245537]
[1742472738805,0.01833379,85529.0,85528.0,0.011692]
[1742472740423,0.01833379,85529.0,85528.0,0.013692]
[1742472740622,0.01833379,85529.0,85528.0,0.002]
[1742472741140,0.01833379,85529.0,85528.0,0.015692]
[1742472742525,0.01833379,85529.0,85528.0,0.096492]
[1742472743553,0.420287,85558.0,85550.0,0.011689]
[1742472743918,0.011688,85555.0,85549.0,0.245471]
[1742472744105,0.24546,85554.0,85549.0,0.233782]
[1742472744519,0.245462,85553.0,85547.0,0.233788]
[1742472744673,0.233786,85549.0,85547.0,0.00012497]
[1742472744874,0.245475,85549.0,85547.0,0.00012497]
[1742472745093,0.011689,85548.0,85547.0,0.00012497]
[1742472746584,0.011689,85548.0,85547.0,0.00112497]
[1742472746789,0.03002043,85548.0,85547.0,0.00112497]
[1742472748023,0.19589546,85548.0,85547.0,0.00112497]
[1742472748426,0.19589546,85548.0,85547.0,0.00212497]
[1742472748957,0.19589546,85548.0,85547.0,0.00112497]
[1742472749356,0.19623426,85548.0,85547.0,0.00012497]
[1742472749738,0.19623426,85548.0,85547.0,0.00112497]
[1742472749935,0.19623426,85548.0,85547.0,0.00012497]
[1742472750929,0.19823426,85548.0,85547.0,0.00012497]
[1742472751379,0.20023426,85548.0,85547.0,0.00012497]
[1742472753663,0.18190283,85548.0,85547.0,0.00012497]
[1742472754064,0.0623278,85548.0,85547.0,0.00012497]
[1742472754932,0.0603278,85548.0,85547.0,0.00012497]
[1742472755158,0.0583278,85548.0,85547.0,0.00012497]
[1742472755375,0.0603278,85548.0,85547.0,0.00012497]
[1742472755529,0.0623278,85548.0,85547.0,0.00012497]
[1742472756638,0.03436073,85548.0,85547.0,0.00012497]
[1742472757392,0.02267173,85548.0,85547.0,0.00012497]
[1742472757595,0.02067173,85548.0,85547.0,0.00012497]
[1742472757972,0.02267173,85548.0,85547.0,0.00012497]
[1742472758392,0.01867173,85548.0,85547.0,0.00012497]
[1742472758576,0.01867173,85548.0,85547.0,0.23391397]
[1742472758781,0.01967173,85548.0,85547.0,0.24560297]
[1742472759203,0.01867173,85548.0,85547.0,0.24560297]
[1742472760248,0.01867173,85548.0,85547.0,0.24660297]
[1742472762072,0.0003388,85548.0,85547.0,0.29610297]
[1742472762236,0.0003388,85548.0,85547.0,0.51101885]
[1742472762827,0.0003388,85548.0,85547.0,0.51001885]
[1742472763247,0.0003388,85548.0,85547.0,0.51301885]
[1742472763654,0.0003388,85548.0,85547.0,2.01301885]
[1742472764030,0.0003388,85548.0,85547.0,2.01601885]
[1742472764809,0.0003388,85548.0,85547.0,2.01301885]
[1742472765124,0.0003388,85548.0,85547.0,2.002478]
[1742472765332,0.01866726,85548.0,85547.0,0.33040297]
[1742472765524,0.01866726,85548.0,85547.0,0.46144297]
[1742472765761,0.01866726,85548.0,85547.0,0.46544297]
[1742472770062,0.01866726,85548.0,85547.0,0.13916497]
[1742472770328,0.03035626,85548.0,85547.0,0.13916497]
[1742472770537,0.03035626,85548.0,85547.0,0.00812497]
[1742472770762,0.0120278,85548.0,85547.0,0.00812497]
[1742472770959,0.0120278,85548.0,85547.0,0.00412497]
[1742472773602,0.0003388,85548.0,85547.0,0.01181397]
[1742472773753,0.0003388,85548.0,85547.0,0.01381397]
[1742472774196,0.0003388,85548.0,85547.0,0.01681397]
[1742472775409,0.01866852,85548.0,85547.0,0.01681397]
[1742472777307,0.01866852,85548.0,85547.0,0.00512497]
[1742472778448,0.01866852,85548.0,85547.0,0.01681397]
[1742472778787,0.01866852,85548.0,85547.0,0.00512497]
[1742472779184,0.01866852,85548.0,85547.0,0.01681397]
[1742472780153,0.01866852,85548.0,85547.0,0.00512497]
[1742472780950,0.01866852,85548.0,85547.0,0.01681397]
[1742472781568,0.01866852,85548.0,85547.0,0.00512497]
[1742472782658,0.03035752,85548.0,85547.0,0.00512497]
[1742472783476,0.01866852,85548.0,85547.0,0.00512497]
[1742472785809,0.01866852,85548.0,85547.0,0.01681397]
[1742472786644,0.01866852,85548.0,85547.0,1.51681397]
[1742472787092,0.01866852,85548.0,85547.0,0.01681397]
[1742472788162,0.01866852,85548.0,85547.0,0.00512497]
[1742472788443,0.01866852,85548.0,85547.0,0.01681397]
[1742472789279,0.0003388,85548.0,85547.0,0.10725482]
[1742472789453,0.0003388,85548.0,85547.0,1.60725482]
[1742472789699,0.0003388,85548.0,85547.0,0.10725482]
[1742472790387,0.0003388,85548.0,85547.0,0.52916738]
[1742472790598,0.0003388,85548.0,85547.0,0.52682985]
[1742472790797,0.0003388,85548.0,85547.0,0.50682985]
[1742472791025,0.0003388,85548.0,85547.0,0.51851885]
[1742472791721,0.0003388,85548.0,85547.0,0.52451885]
[1742472792220,0.01866661,85548.0,85547.0,0.52451885]
[1742472792935,0.01866661,85548.0,85547.0,0.51851885]
[1742472793122,0.01866661,85548.0,85547.0,0.52351885]
[1742472793354,0.01866661,85548.0,85547.0,0.52451885]
[1742472793749,0.01866661,85548.0,85547.0,2.03051885]
[1742472793894,0.01866661,85548.0,85547.0,2.44541834]
[1742472797106,0.0003388,85548.0,85547.0,2.44541834]
[1742472798610,0.0003388,85548.0,85547.0,0.94541834]
[1742472799479,0.0003388,85548.0,85547.0,0.96730984]
[1742472799999,0.0186664,85548.0,85547.0,0.96730984]
[1742472800286,0.0186664,85548.0,85547.0,1.52378984]
[1742472803005,0.0186664,85548.0,85547.0,1.53473314]
[1742472803648,0.0186664,85548.0,85547.0,3.03473314]
[1742472804613,0.0186664,85548.0,85547.0,3.02378984]
[1742472808674,0.0186664,85548.0,85547.0,3.02395924]
[1742472811845,0.0186664,85548.0,85547.0,1.00544039]
[1742472812050,0.0120278,85548.0,85547.0,1.00544039]
[1742472812251,0.0467388,85548.0,85547.0,1.00544039]
[1742472812926,0.0467388,85548.0,85547.0,0.97754889]
[1742472813068,0.0467388,85548.0,85547.0,0.98323789]
[1742472813278,0.0467388,85548.0,85547.0,0.98723789]
[1742472813476,0.0467388,85548.0,85547.0,0.99123789]
[1742472813679,0.0467388,85548.0,85547.0,0.98323789]
[1742472814129,0.0467388,85548.0,85547.0,0.98823789]
[1742472814484,0.0467388,85548.0,85547.0,0.98623789]
[1742472814913,0.0467388,85548.0,85547.0,0.98823789]
[1742472815111,0.06506847,85548.0,85547.0,0.98823789]
[1742472817391,0.06506847,85548.0,85547.0,0.5733384]
[1742472826825,0.0003388,85548.0,85547.0,0.83845428]
[1742472827140,0.0003388,85548.0,85547.0,0.86035449]
[1742472827340,0.0003388,85548.0,85547.0,2.36035449]
[1742472828368,0.0003388,85548.0,85547.0,0.86035449]
[1742472829292,0.0003388,85548.0,85547.0,1.27525398]
[1742472829610,0.01866739,85548.0,85547.0,1.27525398]
[1742472830196,0.01866739,85548.0,85547.0,1.25335377]
[1742472834430,0.01866739,85548.0,85547.0,1.11923789]
[1742472834672,0.0003388,85548.0,85547.0,1.11923789]
[1742472837719,0.01866779,85548.0,85547.0,1.11923789]
[1742472840055,0.01866779,85548.0,85547.0,0.98823789]
[1742472841485,0.01866779,85548.0,85547.0,2.48823789]
[1742472843460,0.01866779,85548.0,85547.0,1.93175789]
[1742472845599,0.01866779,85548.0,85547.0,1.94272757]
[1742472846621,0.01866779,85548.0,85547.0,1.93175789]
[1742472852047,0.0003388,85548.0,85547.0,1.93175789]
[1742472853098,0.0003388,85548.0,85547.0,0.43175789]
[1742472855547,0.01866833,85548.0,85547.0,0.42006889]
[1742472856639,0.01866833,85548.0,85547.0,0.43175789]
[1742472858400,0.01866833,85548.0,85547.0,0.0168584]
[1742472864076,0.0003388,85548.0,85547.0,0.0168584]
[1742472865492,0.04725623,85549.0,85548.0,0.245475]
[1742472866682,0.04725623,85549.0,85548.0,0.247475]
[1742472866883,0.04725623,85549.0,85548.0,0.249475]
[1742472867111,0.06558608,85549.0,85548.0,0.249475]
[1742472869052,0.06558608,85549.0,85548.0,0.004]